Cogmind - Beta 17 @@@ ROGUE MODE // 2026.06.26 @ 05:58:55 Player: nnnnsk Result: Destroyed by as-49042 with Assembled Maul Performance ------------- Evolutions (0) 0 Regions Visited (2) 400 Robots Destroyed (20) 100 Value Destroyed (443) 443 Prototype IDs (2) 40 Alien Tech Used (0) 0 Bonus (0) 0 TOTAL SCORE: 983 Bonus ------- None Cogmind --------- Core Integrity 0/250 Matter 104/300 Energy 100/100 System Corruption 8% Temperature Cool (0) Movement Treading (480) Ox4 Location -10/Mines Parts ------- > --- POWER (1) -------- (None) > --- PROPULSION (2) --- Light Treads Aluminum Leg > --- UTILITY (2) ------ Huge Storage Unit > --- WEAPON (2) ------- Assault Rifle > --- INVENTORY (25) --- Improved Heat Sink Structural Scanner Sensor Array Terrain Scanner Improved Terrain Scanner ECM Suite Small Laser Particle Gun Assault Rifle Light Assault Rifle Datajack Hammer Peak State ------------ > --- POWER ------------ Light Nuclear Core > --- PROPULSION ------- Light Treads Light Treads > --- UTILITY ---------- Small Storage Unit Improved Terrain Scanner > --- WEAPON ----------- Particle Gun Assault Rifle > --- INVENTORY -------- Light Ion Engine Light Ion Engine Aluminum Leg Heat Sink Structural Scanner Sensor Array Light Assault Rifle [Rating: 12] Favorites ----------- Power Light Ion Engine Engine Light Ion Engine Power Core Light Nuclear Core Propulsion Light Treads Treads Light Treads Leg Aluminum Leg Utility Huge Storage Unit Device Improved Terrain Scanner Storage Huge Storage Unit Weapon Assault Rifle Energy Gun Particle Gun Ballistic Gun Assault Rifle Build | -11 -10 -10 ------- Run | Yrd Mat Min Slots Evolved . | . . . Power . | . . . Propulsion . | . . . Utility . | . . . Weapon . | . . . Parts Attached 20 | 8 10 2 Power 4 | 1 3 . Engine 3 | 1 2 . Core 1 | . 1 . Reactor . | . . . Propulsion 4 | 2 1 1 Treads 3 | 2 1 . Leg 1 | . . 1 Wheel . | . . . Hover . | . . . Flight . | . . . Utility 5 | 2 2 1 Device 3 | 1 1 1 Storage 2 | 1 1 . Processor . | . . . Hackware . | . . . Protection . | . . . Artifact . | . . . Weapon 7 | 3 4 . Energy Gun 3 | 1 2 . Energy Cannon . | . . . Ballistic Gun 4 | 2 2 . Ballistic Cannon . | . . . Launcher . | . . . Special Weapon . | . . . Impact Weapon . | . . . Slashing Weapon . | . . . Piercing Weapon . | . . . Special Melee Weapon . | . . . Unidentified Prototypes . | . . . Parts Lost 9 | . 3 6 Power 4 | . 2 2 Propulsion 2 | . . 2 Utility 1 | . . 1 Weapon 2 | . 1 1 Highest Loss Streak 4 | . 2 4 To Critical Strikes . | . . . Average Backups 11 | 2 11 12 Power 1 | . 1 . Propulsion 1 | 1 1 . Utility 4 | . 4 6 Weapon 3 | . 3 5 Tool/Special . | . . . Unused Backups 11 | . 3 8 Power . | . . . Propulsion 3 | . 3 . Utility 4 | . . 4 Weapon 3 | . . 3 Tool/Special 1 | . . 1 Average Slot Usage (%) 92 | . 93 84 Engine 10 | . 11 4 Core 1 | . 1 . Treads 24 | . 25 18 Device 13 | . 13 13 Storage 14 | . 14 14 Energy Gun 5 | . 5 . Ballistic Gun 21 | . 20 24 Peak Build Rating 12 | 9 12 10 Average Rating 9 | 5 9 7 On Entrance 6 | . 9 10 Avg Prop Armor Cover (%) 11 | . . 11 Naked Turns . | . . . Heaviest Build 89 | 13 89 85 Greatest Support 40 | 40 40 20 Greatest Overweight (x) 28 | . 28 8 Average Overweight (x) 1 | . 1 6 Largest Inventory Capacity 25 | 8 25 25 Average Capacity 18 | 6 18 25 Most Carried 21 | 6 21 15 Average Carried 11 | 3 11 12 Final Capacity 25 | 8 25 25 Final Carried 15 | 6 15 12 Class Distribution -------------------- 100% | Mutant Dominant Class ---------------- Mutant | -10/Materials Mutant | -10/Mines Resources | -11 -10 -10 ----------- Run | Yrd Mat Min Matter Collected 568 | 217 337 14 Remotely . | . . . Salvage Created 515 | 29 406 80 Parts 32 | 3 20 9 Haulers Intercepted 1 | . 1 . Recyclers Shooed . | . . . Parts Field Recycled . | . . . Retrieved Matter . | . . . Parts Self-Destructed . | . . . Prevented . | . . . Parts Restored . | . . . Kills | -11 -10 -10 ------- Run | Yrd Mat Min Combat Hostiles Destroyed 15 | . 9 6 Guns 15 | . 9 6 Classes Destroyed 10 | 1 6 3 Worker 1 | . 1 . Builder 1 | . . 1 Tunneler 1 | 1 . . Hauler 1 | . 1 . Operator 1 | . 1 . Watcher 1 | . 1 . Swarmer 6 | . 3 3 Grunt 6 | . 6 . Demolisher 2 | . . 2 Assembled 1 | . . 1 Best Kill Streak 6 | 1 3 6 Combat Bots Only 5 | . 3 5 Max Kills in Single Turn 1 | 1 1 1 Gunslinging . | . . . Exploded . | . . . Melee . | . . . Uniques/NPCs Destroyed . | . . . Combat | -11 -10 -10 -------- Run | Yrd Mat Min Hostile Shots Fired 112 | . 70 42 Missed 21 | . 17 4 Hits 91 | . 53 38 Melee 8 | . . 8 Projectile 83 | . 53 30 AOE 13 | . . 13 Damage Taken 1447 | . 571 876 Core 260 | . 92 168 Absorbed by Shields . | . . . Regen/Repaired (Parts) 88 | . 88 . Core Remaining (%) 100 | 100 . . Volleys Fired 65 | 2 40 23 Largest 2 | 2 2 2 Hottest 85 | 40 85 40 Shots Fired 124 | 4 80 40 Gun 124 | 4 80 40 Cannon . | . . . Launcher . | . . . Special . | . . . Kinetic 113 | 4 69 40 Thermal 11 | . 11 . Explosive . | . . . Electromagnetic . | . . . Robot Hit Streak 10 | 4 10 5 Robot Miss Streak 6 | . 6 3 Penetration Max . | . . . Secondary Targets 3 | . 2 1 Max Gunslinging Chain 1 | . 1 1 Shots Hit Robots 79 | 4 49 26 Core Hits 37 | 1 25 11 Critical Kills . | . . . Critical Parts Destroyed . | . . . Critical Strikes . | . . . Melee Attacks . | . . . Impact . | . . . Slashing . | . . . Piercing . | . . . Sneak Attacks . | . . . Combat Hostiles . | . . . Follow-up Attacks . | . . . Damage Inflicted 1052 | 53 666 333 Guns 1052 | 53 666 333 Cannons . | . . . Explosions . | . . . Melee . | . . . Ramming . | . . . Kinetic 903 | 53 517 333 Thermal 149 | . 149 . Explosive . | . . . Electromagnetic . | . . . Impact . | . . . Slashing . | . . . Piercing . | . . . Highest Corruption 8 | . . 8 Average Corruption 4 | . . 4 Corruption Purged . | . . . Corruption Blocked . | . . . Effects 1 | . . 1 Data Loss (minor) 1 | . . 1 Overload Shots . | . . . Overflow Damage . | . . . Projectiles . | . . . Explosions . | . . . Melee . | . . . Knockbacks . | . . . Impact . | . . . Kinetic . | . . . Secondary . | . . . Self-Inflicted Damage . | . . . Shots . | . . . Rammed . | . . . Targets Rammed . | . . . Kicked . | . . . Crushed . | . . . Highest Temperature 36 | . 36 . Average Temperature 8 | . 8 . Received Heat Transfer 231 | . 231 . Siege Activations . | . . . Martial Activations . | . . . Shielding Activations . | . . . Robots Disrupted . | . . . Combat Hostiles . | . . . Robots Corrupted . | . . . Combat Hostiles . | . . . Parts Fried . | . . . Impact Corruptions . | . . . Robots Melted . | . . . Combat Hostiles . | . . . Parts Melted . | . . . Heat Transferred 370 | . 370 . Parts Sabotaged . | . . . Parts Stolen . | . . . Parts Stripped . | . . . Power Chain Reactions . | . . . Alert | -11 -10 -10 ------- Run | Yrd Mat Min Maximum Alert Level . | . . . Low Security (%) 100 | 100 100 100 Level 1 . | . . . Level 2 . | . . . Level 3 . | . . . Level 4 . | . . . Level 5 . | . . . High Security . | . . . Max Security . | . . . Peak Influence 90 | 5 75 90 Initial . | . . . Average 12 | . 11 35 Influence Increases 428 | 5 298 125 Destroy 0b10 Robot/C 280 | . 180 100 Destroy 0b10 Robot/NC 30 | 5 20 5 Destroy Leader 54 | . 34 20 Successful Hack 18 | . 18 . Destroy Structure 1 | . 1 . Lose Combat Pursuer 45 | . 45 . Influence Decreases 428 | 5 298 125 Time Decay 355 | 5 275 75 Lost Part 73 | . 23 50 Squads Dispatched . | . . . Investigation . | . . . Extermination . | . . . Reinforcement . | . . . Assault . | . . . Garrison . | . . . Intercept . | . . . Searches Triggered . | . . . Construction Impeded . | . . . Haulers Reinforced . | . . . Active Scanning Responses . | . . . Cargo Convoy Interrupts . | . . . Stealth | -11 -10 -10 --------- Run | Yrd Mat Min Distress Signals 3 | . 3 . Communications Jammed . | . . . Distress Signals . | . . . Times Spotted 26 | . 18 8 Peak Tracking Total 6 | . 6 3 Tactical Retreats 2 | . 2 . Traps | -11 -10 -10 ------- Run | Yrd Mat Min Traps Triggered 4 | . 4 . Indirectly . | . . . Trap Hack Attempts . | . . . Triggered . | . . . Disarmed . | . . . Reprogrammed . | . . . Reused . | . . . Traps Extracted . | . . . Installed . | . . . Triggered . | . . . Machines | -11 -10 -10 ---------- Run | Yrd Mat Min Machines Disabled . | . . . Max in Single Turn . | . . . Machines Repaired . | . . . Machines Dismantled . | . . . Machines Sabotaged . | . . . Overloaded Fab Kills . | . . . Hacking | -11 -10 -10 --------- Run | Yrd Mat Min Machines Accessed 8 | . 8 . Terminals 7 | . 7 . Fabricators . | . . . Repair Stations 1 | . 1 . Recycling Units . | . . . Scanalyzers . | . . . Garrison Access . | . . . Total Hacks 25 | . 25 . Successful 11 | . 11 . Failed 14 | . 14 . Catastrophic 2 | . 2 . Database Lockouts . | . . . Manual 13 | . 13 . Terminals 21 | . 21 . Fabricators . | . . . Repair Stations 4 | . 4 . Recycling Units . | . . . Scanalyzers . | . . . Garrison Access . | . . . Terminal Hacks 2 | . 2 . Prototype ID Bank 1 | . 1 . Locate Traps 1 | . 1 . Fabricator Hacks . | . . . Repair Station Hacks 3 | . 3 . Scan Component 2 | . 2 . Repair 1 | . 1 . Recycling Unit Hacks . | . . . Scanalyzer . | . . . Garrison Access Hacks . | . . . Unauthorized Hacks 6 | . 6 . Terminals 6 | . 6 . Botnet 2 | . 2 . Skim 4 | . 4 . Fabricators . | . . . Repair Stations . | . . . Recycling Units . | . . . Scanalyzers . | . . . Garrison Access . | . . . Data Cores Recovered 1 | . 1 . Used . | . . . Hacking Detections 7 | . 7 . Full Trace Events 1 | . 1 . Feedback Events . | . . . Feedback Blocked . | . . . Robot Schematics Acquired . | . . . Robots Built . | . . . Authchips . | . . . Time . | . . . Total Robot Build Rating . | . . . Part Schematics Acquired . | . . . Parts Built . | . . . Authchips . | . . . Time . | . . . Total Part Build Rating . | . . . Part Studies Acquired . | . . . Parts Repaired 1 | . 1 . Time 26 | . 26 . Parts Recycled . | . . . Recycled Matter . | . . . Retrieved Matter . | . . . Retrieved Components . | . . . Parts Scanalyzed . | . . . Part Schematics Acquired . | . . . Parts Damaged . | . . . Bothacking | -11 -10 -10 ------------ Run | Yrd Mat Min Used RIF Installer . | . . . Robots Hacked . | . . . Non-combat . | . . . Combat . | . . . Robot Hacks Applied . | . . . Relay Couplers Released . | . . . Fabnet Peak Effective % . | . . . Robots Rewired . | . . . Allies Hacked . | . . . Hacks Repelled . | . . . Allies | -11 -10 -10 -------- Run | Yrd Mat Min Total Allies . | . . . Largest Group . | . . . Highest-Rated Group . | . . . Highest-Rated Ally . | . . . Total Orders . | . . . Ally Attacks . | . . . Total Damage . | . . . Kills . | . . . Allies Corrupted . | . . . Allies Melted . | . . . Intel | -11 -10 -10 ------- Run | Yrd Mat Min Active Infowar (turns) 1053 | 19 1010 24 Terrain 1053 | 19 1010 24 Robot Analysis Total . | . . . Derelict Logs Recovered . | . . . Drone Launches . | . . . Drone Recoveries . | . . . Exploration | -11 -10 -10 ------------- Run | Yrd Mat Min Turns Passed 2085 | 97 1810 178 Spaces Moved 676 | 49 608 19 Core 14 | 5 9 . Treads 651 | 44 599 8 Legs 11 | . . 11 Wheels . | . . . Hover . | . . . Flight . | . . . Fastest Speed 50 | 50 160 480 Average Speed 250 | 148 248 595 Slowest Speed 1450 | 160 1450 680 Overloaded Moves . | . . . Propulsion Burnouts . | . . . Robots Hopped . | . . . Potential Cave-ins . | . . . Cave-ins Triggered . | . . . Exploration Rate (%) 28 | 3 76 6 Regions Visited 2 Branch Regions 1 Pre-discovered Areas . | . . . Known Exits Taken . | . . . Unknown Exits Taken 2 | 1 1 . Scrap Searched . | . . . Spaces Dug . | . . . Terrain Destroyed . | . . . Melee . | . . . Projectile . | . . . AOE . | . . . Terrain Rammed . | . . . Walls Destroyed . | . . . Machines Disabled . | . . . Actions | -11 -10 -10 --------- Run | Yrd Mat Min Total 943 | 65 832 46 Wait 146 | 1 145 . Move 674 | 48 607 19 Hop . | . . . Pick Up 25 | 6 19 . Fast Attach 9 | 7 2 . Attach 11 | . 8 3 Detach . | . . . Swap 7 | 1 5 1 Drop 6 | . 6 . Fire 65 | 2 40 23 Melee . | . . . Ram . | . . . Kick . | . . . Crush . | . . . Escape Stasis . | . . . Rewire . | . . . Trap . | . . . Miscellaneous . | . . . Route ------- -11/Scrapyard -10/Materials (discovered 2 exits: [*Mat] / [*Min]) -10/Mines (discovered 1 exit: [*Mat]) History --------- Turn | Location | Event 5 | -11/Scrapyard | Discovered new exit (range 13) 98 | -11/Scrapyard | Entered Materials 303 | -10/Materials | Build established: Mutant 562 | -10/Materials | Discovered new exit (range 7) 1325 | -10/Materials | Discovered new exit (range 16) 1674 | -10/Materials | Repaired Lgt. Treads 1908 | -10/Materials | Entered Mines 1909 | -10/Mines | Assembled infested the area 1913 | -10/Mines | Met a Derelict bent on vengeance 1947 | -10/Mines | Core integrity fell below 50% 1955 | -10/Mines | Core integrity fell below 20% 1985 | -10/Mines | Lost 4 parts (2p2n) 1991 | -10/Mines | Discovered new exit (range 12) 2086 | -10/Mines | Destroyed by as-49042 with Assembled Maul Last Messages --------------- 01992_ U-05 Engineer lays Concrete. 01994_ K-01 Serf collects debris. 01995_ U-05 Engineer lays Concrete. 01997_ K-01 Serf collects debris. 01997_ U-05 Engineer lays Concrete. 01998_ K-01 Serf collects debris. 01998_ U-05 Engineer lays Concrete. 02006_ K-01 Serf collects debris. 02007_ U-05 Engineer builds a Wall. 02022_ as-55072 sneak attacks. 02022_ T-07 Excavator system corrupted by crushing effect. 02026_ U-05 Engineer builds a Wall. 02029_ U-05 Engineer knocked back. 02036_ Assault Rifle destroyed. 02036_ System corrupted by crushing effect (+4). 02049_ as-55072 destroyed. 02063_ System corrupted: Component data lost. 02079_ Heat Sink destroyed. 02079_ System corrupted by crushing effect (+4). Map ----- +----------------------------------------------------+ | ???????????????????????????????????????? | | ???????????????????????????????????????? | | ???????????????????????????????????????? | | ???????????????????????????????????????? | | ???????????????????????????????????????? | | ???????????????????????????????????????? | | ???????????????????????????????????????? | | ???????????????????????????????????????? | | ???????????????????????????????????????? | | ???????????????????????????????????????? | | ???????????????????????????????????????? | | ???????????????????????????????????????? | | ???????????????????????????????????????? | | ???????????????????????????????????????? | | ???????????????????????????????????????? | | ???????????????????????????????????????? | | ???????????????????????????????????????? | | ???????????????????????????????????????? | | ???????????????????????????????????????? | | ???????????????????????????????????????? | | ???????????????????????????????????????? | | ???????????????????????######??????????? | | ???????????????????????# ##?????????? | | ???????????????????????# #??#??????? | | ???????????????????????# < #? #??????# | | ???????????????????????# @ # ##?????? | | ???????????????????????# a #??????? | | ???????????????????????# #####??????? | | ???????????????????????## ##??????????? | | ????????????????????????# #???????????? | | ????????????????????????# ########????? | | ????????????????????????# ## ### ##???? | | ????????????????????????# # ### ##??? | | ???????????????????????## ## # #??? | | ?????????????????????#??#%!## # #??? | | ????????????????????????# | ! ####??? | | ???????????????? ???????##=## # #??? | | ?????????????????????????# ## # #??? | | ?????????????????????????# ## # ##??? | | ?????????????????????????# ## ###???? | | ?????????????????????????# ########????? | | ?????????????????????????# #???????????? | | ?????????????????????????# #???????????? | | ?????????????????????????#=%??? ???????? | | ?????????????????????????###???????????? | | ????????????????????????????#??????????? | | ??????????????????????#????????????????? | | ???????????????????????????????????#???? | | ???????????????????????????????????????? | | ???????????????????????????????????????? | +----------------------------------------------------+ Best States ------------- Heat Dissipation 39 Energy Generation 14 Energy Capacity 160 Matter Stores 300 Matter Capacity 300 Sight Range 16 Terrain Scan Range 16 Terrain Scan Density 10 Evasion (%) 40 Recoil Reduction 2 Item Schematics ----------------- None Robot Schematics ------------------ None Fabricated ------------ Nothing Repaired ---------- Lgt. Treads | 37% | -10/Materials Studied --------- None Alien Tech Used ----------------- None Achievements -------------- None Challenges ------------ None Game ------ Seed AssaultOmegaFlail Manual? 0 Play Time 00:13:35 Cumulative 73.1 hours Start 2026.06.25 @ 21:37:31 End 2026.06.26 @ 05:58:55 Sessions 3 Manual Loads 0 Difficulty Rogue Special Mode None Game No. 89 Rogue 82 Adventurer 0 Explorer 7 Win Type - Total 1 Types 1/0/0/0/0/0/0/0/0/0 Lore% 20 Gallery% 30 Achievement% 26 Wizard Run 0 Options --------- Layout 1 ASCII 0 Keyboard 0 Movement Numpad Keybinds 0 Fullscreen 2 Font 32/SmallcapsGlow Map View 50x35 Zoom Use 0% Tactical HUD 1 Map Filters NONE Filters NONE Steam 1 RUN: b371a1c6-97a0-4e81-98f3-dcf5ad57811d